{"text_format":"1","workbook":"xlsx","n_sheets":5,"sheets":["誓約書","様式 (2)","DL","病児・病後児①(基本）","病児・病後児②（点検表）"],"not_rendered":{"charts":0,"images":0,"macros":1,"external_links":0,"defined_names":6,"comments":1,"pivot_tables":0},"unopened":[],"bounds":{"document_bytes":16777216,"sheet_cells":100000,"rows_first":2000,"rows_last":500,"rows_between":2000,"halvings":0,"cell_chars":16384,"cell_head_chars":4096},"cells_cut":0,"cells_raw":0,"read":"whole","date_system":"1900"}

{"sheet":"誓約書","index":0,"n_rows":27,"n_cols":42,"rows_kept":27,"cut":false,"hidden":false,"merged":[[26,3,26,35],[26,36,26,40],[19,1,20,42],[0,0,0,43],[2,33,2,34],[2,36,2,37],[2,39,2,40],[25,3,25,35],[25,36,25,40],[8,24,8,39],[11,24,11,39],[14,24,14,39],[17,24,17,39],[5,2,5,25]]}
["令和７年度チェックリストの記載内容に係る誓約書\n【病児・病後児保育事業】\n(※保育所・認定こども園以外）"]
[]
[null,null,null,null,null,null,null,null,null,null,null,null,null,null,null,null,null,null,null,null,null,null,null,null,null,null,null,null,null,null,"令和",null,null,7,null,"年",null,null,"月",null,null,"日"]
[]
[null,"兵庫県知事　様"]
[]
[]
[]
[null,null,null,null,null,null,null,null,null,null,null,null,null,null,"法人名："]
[]
[]
[null,null,null,null,null,null,null,null,null,null,null,null,null,null,"代表者の職氏名："]
[]
[]
[null,null,null,null,null,null,null,null,null,null,null,null,null,null,"事業所名："]
[]
[]
[null,null,null,null,null,null,null,null,null,null,null,null,null,null,"記入担当者の職氏名："]
[]
[null,"　令和７年度チェックリスト【病児・病後児保育事業】を提出するに\n\nあたり、当法人は、記載項目、記載事項に漏れがないことを確認するとと\n\nもに、記載内容が正確であることを十分に調査・確認のうえ作成しており、\n\nすべての記載内容が真実かつ適正であることを誓約します。"]
[]
[]
[]
[]
[]
[null,null,null,"◇ 添付書類の確認（次の資料を提出してください。）",null,null,null,null,null,null,null,null,null,null,null,null,null,null,null,null,null,null,null,null,null,null,null,null,null,null,null,null,null,null,null,null,"提出(添付)チェック欄"]
[null,null,null,"利用リーフレット、ホームページの写し等（対応可能な症例、開所時間等保護者への周知文書）"]

{"sheet":"様式 (2)","index":1,"n_rows":193,"n_cols":46,"rows_kept":193,"cut":false,"hidden":true,"merged":[[66,10,66,14],[3,1,3,14],[31,10,31,14],[63,10,63,14],[64,10,64,14],[62,10,62,14],[65,10,65,14],[34,10,34,14],[41,10,41,14],[54,4,54,8],[54,10,54,14],[62,4,62,8],[63,4,63,8],[64,4,64,8],[188,10,188,14],[189,10,189,14],[190,10,190,14],[192,10,192,14],[183,10,183,14],[184,10,184,14],[185,10,185,14],[187,10,187,14],[186,10,186,14],[191,10,191,14],[179,10,179,14],[180,10,180,14],[181,10,181,14],[182,10,182,14],[173,10,173,14],[174,10,174,14],[175,10,175,14],[176,10,176,14],[178,11,178,14],[164,10,164,14],[157,10,157,14],[158,10,158,14],[159,10,159,14],[160,10,160,14],[169,10,169,14],[170,10,170,14],[171,10,171,14],[172,10,172,14],[165,10,165,14],[166,10,166,14],[167,10,167,14],[168,10,168,14],[155,10,155,14],[156,10,156,14],[148,10,148,14],[151,10,151,14],[150,10,150,14],[149,10,149,14],[161,10,161,14],[162,10,162,14],[163,10,163,14],[68,10,68,14],[77,10,77,14],[83,10,83,14],[108,10,108,14],[105,10,105,14],[102,10,102,14],[103,10,103,14],[104,10,104,14],[90,10,90,14],[91,10,91,14],[106,10,106,14],[107,10,107,14],[73,10,73,14],[74,10,74,14],[101,10,101,14],[98,10,98,14],[85,10,85,14],[92,10,92,14],[93,10,93,14],[86,10,86,14],[87,10,87,14],[88,10,88,14],[137,10,137,14],[152,10,152,14],[177,11,177,14],[94,10,94,14],[95,10,95,14],[96,10,96,14],[97,10,97,14],[119,10,120,14],[139,10,139,14],[109,10,109,14],[110,10,110,14],[136,10,136,14],[138,10,138,14],[140,10,140,14],[144,10,144,14],[145,10,145,14],[147,10,147,14],[141,10,141,14],[143,10,143,14],[142,10,142,14],[153,10,153,14],[154,10,154,14],[99,10,99,14],[100,10,100,14],[0,0,0,45],[1,34,1,38],[43,10,43,14],[44,10,44,14],[53,10,53,14],[1,39,1,45],[34,4,34,8],[41,4,41,8],[43,4,43,8],[44,4,44,8],[4,10,4,14],[4,15,4,43],[31,4,31,8],[13,29,13,34],[15,26,15,28],[22,21,22,22],[23,21,23,22],[24,21,24,22],[11,10,13,14],[7,10,9,14],[7,4,9,8],[30,28,30,31],[25,26,25,28],[25,29,25,31],[192,4,192,8],[4,1,4,8],[187,4,187,8],[188,4,188,8],[189,4,189,8],[190,4,190,8],[182,4,182,8],[183,4,183,8],[75,10,75,14],[76,10,76,14],[78,10,78,14],[79,10,79,14],[67,10,67,14],[69,10,69,14],[89,10,89,14],[80,10,80,14],[81,10,81,14],[82,10,82,14],[84,10,84,14],[70,10,70,14],[71,10,71,14],[72,10,72,14],[184,4,184,8],[185,4,185,8],[176,4,176,8],[179,4,179,8],[180,4,180,8],[181,4,181,8],[172,4,172,8],[173,4,173,8],[174,4,174,8],[161,4,161,8],[162,4,162,8],[163,4,163,8],[175,4,175,8],[168,4,168,8],[169,4,169,8],[170,4,170,8],[171,4,171,8],[164,4,164,8],[165,4,165,8],[166,4,166,8],[167,4,167,8],[151,4,151,8],[153,4,153,8],[154,4,154,8],[155,4,155,8],[147,4,147,8],[148,4,148,8],[149,4,149,8],[150,4,150,8],[160,4,160,8],[156,4,156,8],[157,4,157,8],[158,4,158,8],[159,4,159,8],[144,4,144,8],[145,4,145,8],[110,4,110,8],[137,4,137,8],[138,4,138,8],[139,4,139,8],[140,4,140,8],[141,4,141,8],[109,4,109,8],[136,4,136,8],[146,10,146,14],[119,4,120,8],[68,4,68,8],[70,4,70,8],[71,4,71,8],[72,4,72,8],[73,4,73,8],[91,4,91,8],[92,4,92,8],[75,4,75,8],[84,4,84,8],[76,4,76,8],[78,4,78,8],[79,4,79,8],[80,4,80,8],[93,4,93,8],[85,4,85,8],[86,4,86,8],[87,4,87,8],[88,4,88,8],[81,4,81,8],[82,4,82,8],[74,4,74,8],[106,4,106,8],[112,20,112,27],[114,20,114,27],[112,28,112,30],[65,4,65,8],[67,4,67,8],[98,4,98,8],[99,4,99,8],[97,4,97,8],[94,4,94,8],[95,4,95,8],[96,4,96,8],[89,4,89,8],[90,4,90,8],[104,4,104,8],[105,4,105,8],[74,17,74,33],[75,17,75,33],[76,17,76,33],[77,17,77,33],[82,17,82,33],[107,4,107,8],[100,4,100,8],[102,4,102,8],[103,4,103,8],[54,17,54,27],[13,17,15,22],[21,17,21,20],[21,21,21,22],[20,23,20,25],[21,23,21,25],[13,23,13,28],[16,17,16,20],[15,23,15,25],[17,17,17,20],[16,21,16,22],[17,21,17,22],[16,23,16,25],[17,23,17,25],[16,26,16,28],[17,26,17,28],[19,17,19,20],[20,17,20,20],[23,17,23,20],[24,17,24,20],[20,21,20,22],[22,17,22,20],[35,17,35,33],[36,17,36,33],[15,29,15,31],[14,23,14,28],[14,29,14,34],[17,29,17,31],[17,32,17,34],[26,26,26,28],[26,29,26,31],[21,26,21,28],[22,26,22,28],[22,29,22,31],[23,26,23,28],[23,29,23,31],[24,26,24,28],[24,29,24,31],[21,32,21,34],[22,32,22,34],[26,32,26,34],[23,32,23,34],[25,23,25,25],[19,26,19,28],[19,29,19,31],[20,26,20,28],[20,29,20,31],[53,17,53,33],[45,4,46,8],[49,18,49,22],[50,20,50,22],[50,24,50,26],[50,28,50,30],[51,20,51,22],[51,24,51,31],[53,4,53,8],[68,17,68,33],[69,17,69,33],[70,17,70,33],[71,17,71,33],[72,17,72,33],[73,17,73,33],[86,17,86,33],[87,17,87,33],[62,17,62,33],[63,17,63,33],[64,17,64,33],[65,17,65,33],[66,17,66,33],[67,17,67,33],[88,17,88,33],[89,17,89,33],[90,17,90,33],[91,17,91,33],[84,17,84,33],[78,17,78,33],[79,17,79,33],[80,17,80,33],[81,17,81,33],[85,17,85,33],[83,17,83,33],[98,17,98,33],[99,17,99,33],[100,17,100,33],[101,17,101,33],[102,17,102,33],[103,17,103,33],[92,17,92,33],[93,17,93,33],[94,17,94,33],[95,17,95,33],[96,17,96,33],[97,17,97,33],[130,18,130,21],[131,18,131,21],[132,18,132,21],[133,18,133,21],[104,17,104,33],[108,17,108,33],[109,17,109,33],[111,31,111,32],[105,17,105,33],[106,17,106,33],[107,17,107,33],[126,26,126,27],[127,26,127,27],[111,28,111,30],[111,20,111,27],[120,18,120,21],[119,18,119,21],[122,26,122,27],[123,26,123,27],[112,17,113,19],[114,17,114,19],[124,26,124,27],[125,26,125,27],[113,20,113,27],[139,17,139,33],[140,17,140,33],[141,17,141,33],[142,17,142,33],[143,17,143,33],[144,17,144,33],[136,17,136,33],[137,17,137,33],[138,17,138,33],[151,17,151,33],[152,17,152,33],[153,17,153,33],[154,17,154,33],[155,17,155,33],[156,17,156,33],[145,17,145,33],[146,17,146,33],[147,17,147,33],[148,17,148,33],[149,17,149,33],[150,17,150,33],[163,17,163,33],[164,17,164,33],[165,17,165,33],[166,17,166,33],[167,17,167,33],[168,17,168,33],[157,17,157,33],[158,17,158,33],[159,17,159,33],[160,17,160,33],[161,17,161,33],[162,17,162,33],[175,17,175,33],[176,17,176,33],[177,17,177,33],[178,17,178,33],[179,17,179,33],[180,17,180,33],[169,17,169,33],[170,17,170,33],[171,17,171,33],[172,17,172,33],[173,17,173,33],[174,17,174,33],[113,28,113,30],[191,17,191,33],[192,17,192,33],[55,22,55,24],[56,22,56,24],[121,18,121,21],[122,18,122,21],[123,18,123,21],[124,18,124,21],[125,18,125,21],[187,17,187,33],[181,17,181,33],[182,17,182,33],[188,17,188,33],[189,17,189,33],[190,17,190,33],[183,17,183,33],[184,17,184,33],[185,17,185,33],[55,18,55,20],[56,25,56,28],[114,28,114,30],[121,26,121,27],[186,17,186,33],[31,41,31,43],[48,24,48,31],[45,10,46,14],[44,17,44,33],[45,17,45,33],[41,17,41,33],[37,17,37,33],[38,17,38,33],[39,17,39,33],[40,17,40,33],[31,37,31,39],[34,17,34,33],[7,37,7,39],[8,37,8,39],[9,37,9,39],[10,37,10,39],[11,37,11,39],[12,17,12,34],[30,37,30,39],[30,25,30,27],[7,41,7,43],[8,41,8,43],[9,41,9,43],[10,41,10,43],[11,41,11,43],[30,41,30,43],[25,32,25,34],[18,32,18,34],[19,32,19,34],[20,32,20,34],[15,32,15,34],[16,29,16,31],[16,32,16,34],[26,23,26,25],[25,21,25,22],[26,17,26,20],[7,16,7,35],[8,16,8,35],[9,16,9,35],[31,16,31,34],[46,18,46,20],[47,20,47,22],[48,20,48,22],[30,17,30,24],[10,16,10,35],[11,16,11,35],[26,21,26,22],[25,17,25,20],[18,21,18,22],[19,21,19,22],[24,23,24,25],[22,23,22,25],[23,23,23,25],[18,23,18,25],[19,23,19,25],[18,26,18,28],[18,29,18,31],[18,17,18,20],[21,29,21,31],[24,32,24,34],[129,37,129,39],[129,41,129,43],[123,34,123,35],[124,34,124,35],[125,34,125,35],[126,34,126,35],[127,34,127,35],[129,18,129,35],[119,22,119,25],[120,26,120,27],[119,26,119,33],[126,18,126,21],[127,18,127,21],[128,18,128,21],[120,34,120,35],[119,34,119,41],[121,34,121,35],[122,34,122,35]]}
["平成２５年度保育所チェックリスト"]
[null,null,null,null,null,null,null,null,null,null,null,null,null,null,null,null,null,null,null,null,null,null,null,null,null,null,null,null,null,null,null,null,null,null,"（　保育所名：",null,null,null,null,"　　　　　　）"]
[]
[null,"児童福祉行政指導監査実施要綱（厚生労働省）等"]
[null,"国報告 番号･事項\n(事項名は保育用に一部加工している)",null,null,null,null,null,null,null,null,"着眼点",null,null,null,null,"チェック項目"]
["　１　適切な入所者処遇の確保の状況"]
[null,null,null,null,"○社会福祉施設共通事項"]
[null,1,"-",3,"給食における必要な栄養所要量の確保状況",null,null,null,null,"・","適切な給食を提供するよう努められているか。",null,null,null,null,null,"・　必要栄養量を確保するため、計画的に献立を作成しているか。",null,null,null,null,null,null,null,null,null,null,null,null,null,null,null,null,null,null,null,null,"はい",null,null,null,"いいえ"]
[null,null,null,null,null,null,null,null,null,"・",null,null,null,null,null,null,"・　予定献立と実施献立で相違はないか。",null,null,null,null,null,null,null,null,null,null,null,null,null,null,null,null,null,null,null,null,"はい",null,null,null,"いいえ"]
[null,null,null,null,null,null,null,null,null,null,null,null,null,null,null,null,"・　給食担当者は講習会等により知能技能の向上に努めているか。",null,null,null,null,null,null,null,null,null,null,null,null,null,null,null,null,null,null,null,null,"はい",null,null,null,"いいえ"]
[null,null,null,null,null,null,null,null,null,null,null,null,null,null,null,null,"・　保健所の助言等を得ているか。",null,null,null,null,null,null,null,null,null,null,null,null,null,null,null,null,null,null,null,null,"はい",null,null,null,"いいえ"]
[null,null,null,null,null,null,null,null,null,null,"必要な栄養所要量が確保されているか。",null,null,null,null,null,"・　入所児の実態に合わせた栄養給与目標を定めているか。",null,null,null,null,null,null,null,null,null,null,null,null,null,null,null,null,null,null,null,null,"はい",null,null,null,"いいえ"]
[null,null,null,null,null,null,null,null,null,null,null,null,null,null,null,null,null,"年齢別栄養目標"]
[null,null,null,null,null,null,null,null,null,null,null,null,null,null,null,null,null,null,null,null,null,null,null,"１～2歳児",null,null,null,null,null,"3歳児以上"]
[null,null,null,null,null,null,null,null,null,null,null,null,null,null,null,null,null,null,null,null,null,null,null,"主食･副食･おやつ",null,null,null,null,null,"副食･おやつ"]
[null,null,null,null,null,null,null,null,null,null,null,null,null,null,null,null,null,null,null,null,null,null,null,"目標",null,null,"実績",null,null,"目標",null,null,"実績"]
[null,null,null,null,null,null,null,null,null,null,null,null,null,null,null,null,null,"ｴﾈﾙｷﾞｰ",null,null,null,"kcal"]
[null,null,null,null,null,null,null,null,null,null,null,null,null,null,null,null,null,"たんぱく質",null,null,null,"g"]
[null,null,null,null,null,null,null,null,null,null,null,null,null,null,null,null,null,"脂肪ｴﾈﾙｷﾞｰ比",null,null,null,"％"]
[null,null,null,null,null,null,null,null,null,null,null,null,null,null,null,null,null,"ｶﾙｼｳﾑ",null,null,null,"mg"]
[null,null,null,null,null,null,null,null,null,null,null,null,null,null,null,null,null,"鉄",null,null,null,"mg"]
[null,null,null,null,null,null,null,null,null,null,null,null,null,null,null,null,null,"ﾋﾞﾀﾐﾝ A",null,null,null,"μgRE"]
[null,null,null,null,null,null,null,null,null,null,null,null,null,null,null,null,null,"ﾋﾞﾀﾐﾝ B1",null,null,null,"mg"]
[null,null,null,null,null,null,null,null,null,null,null,null,null,null,null,null,null,"ﾋﾞﾀﾐﾝ B2",null,null,null,"mg"]
[null,null,null,null,null,null,null,null,null,null,null,null,null,null,null,null,null,"ﾅｲｱｼﾝ",null,null,null,"mgNE"]
[null,null,null,null,null,null,null,null,null,null,null,null,null,null,null,null,null,"ﾋﾞﾀﾐﾝ C",null,null,null,"mg"]
[null,null,null,null,null,null,null,null,null,null,null,null,null,null,null,null,null,"ﾋﾞﾀﾐﾝ D",null,null,null,"μg"]
[null,null,null,null,null,null,null,null,null,null,null,null,null,null,null,null,"・    アレルギー等を有する児童がいるか。"]
[null,null,null,null,null,null,null,null,null,null,null,null,null,null,null,null,"（いる場合）献立への配慮をしているか。"]
[null,null,null,null,null,null,null,null,null,null,null,null,null,null,null,null,"・    おやつは、甘味品や菓子類に偏っていないか。"]
[null,null,null,null,null,null,null,null,null,null,null,null,null,null,null,null,null,"おやつの手作り状況　　週",null,null,null,null,null,null,null,null,null,null,"回程度",null,null,null,null,null,null,null,null,"はい",null,null,null,"いいえ"]
[null,1,"-",39,"３歳未満児に対する献立、調理(離乳食等)等の配慮の状況",null,null,null,null,null,"３歳未満児に対する献立、調理(離乳食等)、食事の環境などについての配慮がされているか。",null,null,null,null,null,"・離乳食、３歳未満児食、３歳以上児に分けて献立が作られているか。",null,null,null,null,null,null,null,null,null,null,null,null,null,null,null,null,null,null,null,null,"はい",null,null,null,"いいえ"]
[]
[]
[null,1,"-",4,"嗜好調査、残食調査、検食等の実施及びその反映状況",null,null,null,null,"・","嗜好調査、残食(菜)調査、検食等が適切になされており、その結果等を献立に反映するなど、工夫がなされているか。",null,null,null,null,null,null,"・ 児童の嗜好、残飯調査等を行っているか。"]
[null,null,null,null,null,null,null,null,null,null,null,null,null,null,null,null,null,"・ 給食材料の納品に当たり、検収の事務処理は適正か。\n"]
[null,null,null,null,null,null,null,null,null,null,null,null,null,null,null,null,null,"・ 調理業務の委託を行っているか。"]
[null,null,null,null,null,null,null,null,null,null,null,null,null,null,null,null,null,"　　（委託業者名：　　　　　　　　　　　）"]
[]
[]
[]
[null,1,"-",5,"調理内容の状況",null,null,null,null,null,"児童の身体状態に合わせた調理内容になっているか。"]
[]
[null,1,"-",6,"食事時間の状況",null,null,null,null,null,"食事の時間は、家族生活に近い時間となっているか。"]
[null,1,"-",7,"保存食の保管状況及び原材料の保存状況",null,null,null,null,null,"保存食は、一定期間(2週間)適切な方法(冷凍保存)で保管されているか。また、原材料についてもすべて保存されているか。",null,null,null,null,null,null,"・ 献立及び原材料について保存食として-20℃以下で2週間以上　保存しているか"]
[null,1,"-",8,"食器類の衛生管理の状況",null,null,null,null,null,"食器類の衛生管理に努めているか。",null,null,null,null,null,null,"＜食器消毒の状況＞"]
[null,null,null,null,null,null,null,null,null,null,null,null,null,null,null,null,null,null,"回数"]
[null,null,null,null,null,null,null,null,null,null,null,null,null,null,null,null,null,null,null,null,"毎食後"]
[null,null,null,null,null,null,null,null,null,null,null,null,null,null,null,null,null,null,null,null,"その他",null,null,"（",null,null,null,null,null,null,null,null,null,"）"]
[null,null,null,null,null,null,null,null,null,null,null,null,null,null,null,null,null,null,"消毒方法"]
[null,null,null,null,null,null,null,null,null,null,null,null,null,null,null,null,null,null,null,null,"消毒液",null,null,null,"煮沸",null,null,null,"蒸気"]
[null,null,null,null,null,null,null,null,null,null,null,null,null,null,null,null,null,null,null,null,"その他",null,null,"（",null,null,null,null,null,null,null,null,null,"）"]
[]
[null,1,"-",9,"給食関係者の検便の実施状況",null,null,null,null,null,"給食関係者の検便は適切に実施されているか。"]
[null,1,"-",37,"給食材料の適切な用意・保管の状況",null,null,null,null,null,"給食材料が適切に用意され、保管されているか。",null,null,null,null,null,null,"＜食品保管＞"]
[null,null,null,null,null,null,null,null,null,null,null,null,null,null,null,null,null,null,"冷蔵庫",null,null,null,"温度計",null,null,null,null,"有",null,null,"無"]
[null,null,null,null,null,null,null,null,null,null,null,null,null,null,null,null,null,null,null,null,null,null,"庫内温度",null,null,null,null,null,null,"℃"]
[]
[]
[]
[]
[]
[null,1,"-",38,"給食日誌の記録及び脱脂粉乳の受払記録の実施状況",null,null,null,null,null,"給食日誌の記録及び脱脂粉乳の受払記録が適正に行われているか。"]
[null,1,"-",40,"食中毒対策の実施状況",null,null,null,null,null,"食中毒対策が適切に行われているか。"]
[null,1,"-",41,"調理の業務委託に係る契約内容等の遵守の状況",null,null,null,null,null,"調理の業務委託が行われている場合、契約内容等が遵守されているか。"]
[null,1,"-",11,"入所者の状態に応じた排泄及びおむつ交換の実施状況",null,null,null,null,null,"入所者の状態に応じた排泄及びおむつ交換が適切に行われているか。"]
[null,null,null,null,null,null,null,null,null,null,"排泄の自立についてその努力がなされているか。 トイレ等は入所者の特性に応じた工夫がなされているか。また、換気、保温及び入所者のプライバシーの確保に配慮がなされているか。"]
[null,1,"-",12,"衛生的な被服及び寝具の確保の状況",null,null,null,null,null,"衛生的な被服及び寝具が確保されるよう努めているか。"]
[null,1,"-",13,"定期の健康診断、衛生管理及び感染症等への対応状況",null,null,null,null,null,"健康診断の実施、結果の記録及び保管が適切に行われているか。"]
[null,null,null,null,null,null,null,null,null,null,"定期の健康診断、衛生管理及び感染症等に対する対策は適切に行われているか。"]
[null,1,"-",14,"必要な医師、嘱託医の設置状況及び必要な医学的管理の状況"]
[null,1,"-",16,"保護者からの相談に対する援助体制の確保の状況",null,null,null,null,null,"家族との連携に積極的に努めているか。また、入所者や家族からの相談に応じる体制がとられているか。相談に対して適切な助言、援助が行われているか。"]
[null,1,"-",17,"苦情受付窓口の設置など苦情解決処理への対応状況",null,null,null,null,null,"苦情を受け付けるための窓口を設置するなど苦情解決に適切に対応しているか。"]
[null,1,"-",18,"実施機関との連携状況",null,null,null,null,null,"実施機関との連携が図られているか。"]
[null,null,null,null,"○児童福祉施設事項"]
[null,null,null,null,"（児童入所施設）"]
[null,1,"-",19,"子どもの権利の尊重、意見等をくみ取る仕組みの状況",null,null,null,null,null,"施設長が子どもの権利擁護や子どもの指導、職員の管理、危機管理に関して十分な見識を有し、適切に指導・監督ができているか。"]
[null,null,null,null,null,null,null,null,null,null,"子ども一人一人の権利を尊重し、その意見や訴えをくみ取る仕組みが設けられているか。"]
[null,1,"-",20,"懲戒権限の濫用及び被措置児童等虐待防止の取組状況"]
["  ",1,"-",21,"専門的知識や援助技術の習得など職員の資質向上への取組状況",null,null,null,null,null,"健全な環境のもとで、社会福祉事業に関する熱意及び能力を有する職員による適切な運営を行うよう務めているか。"]
[null,1,"-",22,"施設長の見識、適切な指導・監督の実施状況"]
[null,1,"-",23,"子どもの事件や事故防止、健康管理に関する必要な措置の状況",null,null,null,null,null,"子どもの生命を守り、安全を確保するために、事件や事故防止、健康管理に関して必要な措置が講じられているか。"]
[null,1,"-",24,"個々の子どもの特性等に応じた生活指導等適切な指導・援助の実施状況",null,null,null,null,null,"個々の子どもの特性や家庭状況に応じた生活指導、職業指導、家庭復帰又は自立支援に向けた適切な指導・援助が行われているか。"]
[null,null,null,null,null,null,null,null,null,null,"個々の子どもの特性に応じた支援を行うための専門的知識や援助技術の習得など職員の資質向上に努めているか。"]
[null,1,"-",25,"子どもの指導・援助の際の必要に応じた児童相談所等関係機関との連携状況",null,null,null,null,null,"子どもの指導・援助の際に、必要に応じ児童相談所等関係機関との連携が適切に行われているか。"]
[null,1,"-",null,"（保育所）"]
[null,1,"-",26,"開所・閉所時間、保育時間、開設日数の状況",null,null,null,null,null,"開所・閉所時間、保育時間、開設日数が適切に設けられているか。"]
[null,1,"-",27,"入所児童の年齢制限の状況",null,null,null,null,null,"入所児童の年齢制限を行つていないか。"]
[null,1,"-",28,"保育所保育指針を踏まえた各保育所の実情に応じた適切な保育の実施状況",null,null,null,null,null,"保育所保育指針に規定される保育の内容に係る基本原則に関する事項を踏まえ、各保育所の実情に応じて適切な保育が行われているか。"]
[null,1,"-",29,"保育課程を編成し、それに基づく指導計画の作成状況",null,null,null,null,null,"保育課程を編成し、それに基づく指導計画が作成されているか。"]
[null,1,"-",30,"保育所児童保育要録の作成状況",null,null,null,null,null,"保育の記録や自己評価に基づいて、保育所児童保育要録が作成されているか。また、児童の就学に際し、小学校への送付が行われているか。"]
[null,1,"-",31,"児童の就学に際し、保育所児童保育要録の小学校への送付状況"]
[null,1,"-",32,"保護者との連絡調整、家庭との連携の状況",null,null,null,null,null,"保護者との連絡を適切に行い、家庭との連携を図るように努めているか。"]
[null,1,"-",33,"職員及び保育所の課題を踏まえた研修の計画的な実施状況",null,null,null,null,null,"職員及び保育所の課題を踏まえた研修が計画的に実施されているか。"]
[null,1,"-",34,"定員を超えた私的契約児の入所の状況",null,null,null,null,null,"定員を超えて私的契約児を入所させていないか。"]
[null,null,null,null,"（共通事項）"]
[null,1,"-",35,"健康診断の実施、結果の記録及び保管の状況"]
[null,1,"-",36,"乳幼児突然死症候群の防止への対策状況",null,null,null,null,null,"乳幼児突然死症候群の防止に努めるなど、事故防止対策を講じているか。"]
[null,1,"-",42,"子どもの不適切な養育等の発見への努力、必要に応じた関係機関との連携状況",null,null,null,null,null,"子どもの状態を観察し、不適切な養育等の発見に努めるとともに、必要に応じて関係機関との連携を図つているか。"]
[null,1,"-",43,"その他"]
["小　　　　　　　　　　　　　　　　　　　　計"]
["　２　入所者の生活環境等の確保の状況"]
[null,2,"-",null,"○社会福祉施設共通事項",null,null,null,null,null,null,null,null,null,null,null,null,null,null,null,null,null,null,null,null,null,null,null,null,null,null,null,null,null,null,null,null,null,null,null,null,null,null,null,{"$f":"SUM(AS8:AS102)","v":0},{"$f":"SUM(AT8:AT102)","v":0}]
[null,2,"-",1,"入所者の安全・快適な生活空間の確保の状況",null,null,null,null,null,"入所者が安全・快適に生活できる広さ、構造、設備となっているか。"]
[null,2,"-",2,"障害に応じた配慮の確保の状況",null,null,null,null,null,"障害に応じた配慮がなされているか。"]
[null,2,"-",3,"居室等の設備及び運営基準への適合状況",null,null,null,null,null,"居室等が設備及び運営基準にあつた構造になっているか。"]
[null,2,"-",4,"居室等の清掃、衛生管理、保温、換気、採光及び照明の状況",null,null,null,null,null,"居室等の清掃、衛生管理、保温、換気、採光及び照明は適切になされているか。"]
[null,2,"-",5,"その他"]
["　４　施設の運営管理体制の状況"]
[null,4,"-",null,"○社会福祉施設共通事項",null,null,null,null,null,null,null,null,null,null,null,null,null,null,null,null,null,null,null,null,null,null,null,null,null,null,null,null,null,null,null,null,null,null,null,null,null,null,null,{"$f":"SUM(AS109:AS109)","v":0},{"$f":"SUM(AT109:AT109)","v":0}]
[null,4,"-",1,"入所定員及び居室定員の遵守の状況",null,null,null,null,null,"入所定員及び居室の定員を遵守しているか。"]
[null,null,null,null,null,null,null,null,null,null,null,null,null,null,null,null,null,null,null,null,null,null,null,null,null,null,null,null,"必要面積",null,null,"該当児童数"]
[null,null,null,null,null,null,null,null,null,null,null,null,null,null,null,null,null,"０・１歳児",null,null,"乳児室(ほふくしない子)",null,null,null,null,null,null,null,1.65]
[null,null,null,null,null,null,null,null,null,null,null,null,null,null,null,null,null,null,null,null,"ほふく室(ほふくする子の部屋)",null,null,null,null,null,null,null,3.3]
[null,null,null,null,null,null,null,null,null,null,null,null,null,null,null,null,null,"２歳以上児",null,null,"保育室又は遊戯室",null,null,null,null,null,null,null,1.98]
[]
[]
[]
[]
[null,4,"-",2,"管理規程、経理規程等の整備及び運用の状況",null,null,null,null,null,"必要な諸規程は、整備されているか。",null,null,null,null,null,null,null,"種類",null,null,null,"有無",null,null,null,"制定",null,null,null,null,null,null,null,"最終改正"]
[null,null,null,null,null,null,null,null,null,null,null,null,null,null,null,null,null,null,"管理規定",null,null,null,null,"有",null,"無",null,null,null,"年",null,"月",null,"日",null,null,null,"年",null,"月",null,"日"]
[null,null,null,null,null,null,null,null,null,null,null,null,null,null,null,null,null,null,"就業規定",null,null,null,null,"有",null,"無",null,null,null,"年",null,"月",null,"日",null,null,null,"年",null,"月",null,"日"]
[null,null,null,null,null,null,null,null,null,null,null,null,null,null,null,null,null,null,"給与規定",null,null,null,null,"有",null,"無",null,null,null,"年",null,"月",null,"日",null,null,null,"年",null,"月",null,"日"]
[null,null,null,null,null,null,null,null,null,null,null,null,null,null,null,null,null,null,"旅費規定",null,null,null,null,"有",null,"無",null,null,null,"年",null,"月",null,"日",null,null,null,"年",null,"月",null,"日"]
[null,null,null,null,null,null,null,null,null,null,null,null,null,null,null,null,null,null,"経理規定",null,null,null,null,"有",null,"無",null,null,null,"年",null,"月",null,"日",null,null,null,"年",null,"月",null,"日"]
[null,null,null,null,null,null,null,null,null,null,null,null,null,null,null,null,null,null,"公印規定",null,null,null,null,"有",null,"無",null,null,null,"年",null,"月",null,"日",null,null,null,"年",null,"月",null,"日"]
[null,null,null,null,null,null,null,null,null,null,null,null,null,null,null,null,null,null,"庶務規定",null,null,null,null,"有",null,"無",null,null,null,"年",null,"月",null,"日",null,null,null,"年",null,"月",null,"日"]
[null,null,null,null,null,null,null,null,null,null,null,null,null,null,null,null,null,null,"育児休暇規定",null,null,null,null,"有",null,"無",null,null,null,"年",null,"月",null,"日",null,null,null,"年",null,"月",null,"日"]
[]
[null,null,null,null,null,null,null,null,null,null,null,null,null,null,null,null,null,null,"改正は必要な手続きを経て行われているか",null,null,null,null,null,null,null,null,null,null,null,null,null,null,null,null,null,null,"はい",null,null,null,"いいえ"]
[]
[]
[]
[]
[]
[]
[null,null,null,null,null,null,null,null,null,null,"必要な規程に基づいた適切な運用がなされているか。"]
[null,4,"-",3,"帳簿類の整備状況",null,null,null,null,null,"施設運営に必要な帳簿は整備されているか。"]
[null,4,"-",4,"直接処遇職員等配置基準に基づく必要な職員の確保の状況",null,null,null,null,null,"直接処遇職員等は、配置基準に基づく必要な職員が確保されているか。"]
[null,4,"-",5,"施設職員の専従の状況",null,null,null,null,null,"施設の職員は、専ら当該施設の職務に従事しているか。"]
[null,4,"-",6,"施設長の資格要件等の充足状況",null,null,null,null,null,"施設長に適任者が配置されているか。"]
[null,null,null,null,null,null,null,null,null,null," 施設長の資格要件は満たされているか。"]
[null,null,null,null,null,null,null,null,null,null,"施設長は専任者が確保されているか。"]
[null,null,null,null,null,null,null,null,null,null,"施設長がやむなく他の役職を兼務している場合は、施設の運営管理に支障が生じないような体制がとられているか。"]
[null,4,"-",7,"育児休業、産休等代替職員の確保の状況",null,null,null,null,null,"育児休業、産体等代替職員は確保されているか。"]
[null,4,"-",8,"建物、設備の維持管理状況",null,null,null,null,null,"施設設備等生活環境は、適切に確保されているか。"]
[null,null,null,null,null,null,null,null,null,null,"施設設備は、適正に整備されているか。また、建物、設備の維持管理は適切に行われているか。"]
[null,4,"-",9,"運営費の適正運用及び弾力運用の状況",null,null,null,null,null,"運営費は適正に運用され、弾力運用も適正に行われているか。"]
[null,4,"-",10,"運用収入の本部会計への繰入の状況",null,null,null,null,null,"運用収入の本部会計への繰入額は妥当であるか。また、その積算根拠は明確にされているか。"]
[null,4,"-",11,"当期末支払資金残高の充当の状況",null,null,null,null,null,"当期末支払資金残高は、優先的に各種積立金に充てられているか。"]
[null,4,"-",12,"当期末支払資金残高及び引当金の管理運用及び取り崩し等に係る手続きの状況",null,null,null,null,null,"当期末支払資金残高及び積立金は、安全確実な方法で管理運用されているか。また、取り崩し等についての手続きは適正に行われているか。"]
[null,4,"-",13,"高額当期末支払資金残高等を有している場合の入所者処遇等の改善への取組状況",null,null,null,null,null,"高額の当期末支払資金残高等を有している場合、入所者処遇等に必要な改善を要するところはないか。"]
[null,null,null,null,null,null,null,null,null,null,"当期末支払資金残高を有している場合は、過大な保有を防止する観点から当該年度の運営費収入の30%以下の保有となっているか。"]
[null,4,"-",14,"施設の地域開放及び地域との連携の状況",null,null,null,null,null,"施設設備を地域に開放し、地域との連携が深められているか。"]
[null,4,"-",null,"○児童福祉施設事項"]
[null,4,"-",15,"予算及び補正予算の編成の時期及び積算の状況",null,null,null,null,null,"予算及び補正予算の編成の時期と積算は適切に行われているか。"]
[null,4,"-",16,"措置費等の請求の状況",null,null,null,null,null," 措置費等の請求金額が適正に行われているか。 措置費等の請求金額が適正に行われているか。\n会計経理が適切に行われているか。"]
[null,4,"-",17,"事業費と事務費の流用の状況",null,null,null,null,null,"事業費と事務費の流用が適正に行われているか。"]
[null,4,"-",18,"利用者負担金（職員給食費、延長保育利用料等）の設定状況",null,null,null,null,null,"利用者負担金(職員給食費等=共通事項)0(延長保育、一時保育利用料、私的契約児利用料=保育所)が適正な額となっているか。"]
[null,4,"-",19,"他会計間の貸借処理の状況",null,null,null,null,null,"他の会計間の貸借が適正に行われているか。"]
[null,4,"-",20,"現金、預金等の保管状況",null,null,null,null,null," 現金、預金等の保管が適正に行われているか。"]
[null,4,"-",21,"内部牽制体制の確立及び機能の状況",null,null,null,null,null,"内部牽制体制が確立され、適正に機能しているか。"]
[null,4,"-",22,"その他"]
["小　　　　　　　　　　　　　　　　　　　　計"]
["　５　必要な職員の確保と職員処遇の状況"]
[null,null,null,null,"○社会福祉施設共通事項",null,null,null,null,null,null,null,null,null,null,null,null,null,null,null,null,null,null,null,null,null,null,null,null,null,null,null,null,null,null,null,null,null,null,null,null,null,null,null,{"$f":"SUM(AS138:AS165)","v":0},{"$f":"SUM(AT138:AT165)","v":0}]
[null,5,"-",1,"給与規程等の各種規程の整備状況"]
[null,5,"-",2,"労働時間の短縮等労働条件の改善への取組状況",null,null,null,null,null,"労働時間の短縮等労働条件の改善に努めているか。"]
[null,5,"-",3,"労働基準法等関係法規の遵守の状況",null,null,null,null,null,"労働基準法等関係法規は、遵守されているか。"]
[null,5,"-",4,"職員への健康診断等健康管理の実施状況",null,null,null,null,null,"職員への健康診断等健康管理は、適正に実施されているか。"]
[null,5,"-",5,"業務体制の確立と業務省力化推進の取組状況",null,null,null,null,null,"業務体制の確立と業務省力化の推進のための努力がなされているか。"]
[null,5,"-",6,"職員研修等資質向上策の対応状況",null,null,null,null,null,"職員研修等資質向上対策について、その推進に努めているか。"]
[null,5,"-",7,"職員の確保及び定着化への取組状況",null,null,null,null,null,"職員の確保及び定着化について積極的に取り組んでいるか。"]
[null,5,"-",null,"○児童福祉施設事項"]
[null,5,"-",8,"通勤・住宅手当等の各種手当の規定及び支出の状況",null,null,null,null,null,"通勤・住宅手当等の各種手当が規定され、適正に支払われているか。"]
[null,5,"-",9,"労使協定の締結及び労働基準監督署への届出状況",null,null,null,null,null,"労働基準法第24条・第36条の労使の協定が締結され、労働基準監督署へ提出されているか。"]
[null,5,"-",10,"職員の計画的な採用の実施状況",null,null,null,null,null,"職員の確保及び定着化について積極的に取り組んでいるか。"]
[null,null,null,null,null,null,null,null,null,null,null,"職員の計画的な採用に努めているか。"]
[null,null,null,null,null,null,null,null,null,null,null,"労働条件の改善等に配慮し、定着促進及び離職防止に努めているか。"]
[null,5,"-",11,"労働条件の改善等に配慮、定着促進等への取組状況"]
[null,5,"-",12,"その他"]
["小　　　　　　　　　　　　　　　　　　　　計"]
["　６　防災対策への取組状況"]
[null,null,null,null,"○社会福祉施設共通事項",null,null,null,null,null,null,null,null,null,null,null,null,null,null,null,null,null,null,null,null,null,null,null,null,null,null,null,null,null,null,null,null,null,null,null,null,null,null,null,{"$f":"SUM(AS169:AS183)","v":0},{"$f":"SUM(AT169:AT183)","v":0}]
[null,6,"-",1,"消防計画の策定の状況"]
[null,6,"-",2,"消防法令に基づくスプリンクラー、屋内消火栓等の整備状況及び定期点検の実施状況　",null,null,null,null,null,"消防法令に基づくスプリンクラー、屋内消火栓、非常通報装置、防災カーテン、寝具等の設備が整備され、また、これらの設備について専門業者により定期的に点検が行われているか。"]
[null,null,null,null,null,null,null,null,null,null,"非常時に対する避難設備(階段、避難器具)が整備され、点検されているか。"]
[null,6,"-",3,"非常時の連絡・避難体制及び地域の協力体制の確保状況",null,null,null,null,null,"非常時の際の連絡・避難体制及び地域の協力体制は、確保されているか。"]
[null,null,null,null,"○児童福祉施設事項"]
[null,6,"-",4,"消火訓練及び避難訓練の実施状況"]
[null,6,"-",5,"防犯についての配慮状況",null,null,null,null,null,"防犯について配慮されているか。"]
[null,null,null,null,null,null,null,null,null,null,"防災対策について、その充実強化に努めているか。"]
[null,6,"-",6,"その他"]

{"sheet":"DL","index":2,"n_rows":28,"n_cols":12,"rows_kept":28,"cut":false,"hidden":true,"merged":[[2,6,2,7],[2,9,2,10]]}
[]
[null,"昭和","=INDIRECT(\"DL!B2:B3\")",null,null,0,1,2,3,4,5,"計"]
[null,"平成",null,null,null,{"$f":"ROUNDDOWN(#REF!/3,1)","v":{"$error":"#REF!"}},{"$f":"ROUNDDOWN((#REF!+#REF!)/6,1)","v":{"$error":"#REF!"}},null,{"$f":"ROUNDDOWN(#REF!/20,1)","v":{"$error":"#REF!"}},{"$f":"ROUNDDOWN((#REF!+#REF!)/30,1)","v":{"$error":"#REF!"}},null,{"$f":"SUM(F3:K3)","v":{"$error":"#REF!"}}]
[]
[null,"市町","=INDIRECT(\"DL!B5:B12\")"]
[null,"社会福祉法人"]
[null,"学校法人"]
[null,"宗教法人"]
[null,"財団法人"]
[null,"特定非営利活動法人"]
[null,"株式会社"]
[null,"有限会社"]
[]
[null,"有","=INDIRECT(\"DL!B15:B16\")"]
[null,"無"]
[]
[null,"○","=INDIRECT(\"DL!B17:B18\")"]
[null,"×"]
[]
[null,"1.有","=INDIRECT(\"DL!B20:B21\")"]
[null,"2.無"]
[]
[null,"昭和","=INDIRECT(\"DL!B23:B24\")"]
[null,"平成"]
[]
[null,"時間","=INDIRECT(\"DL!B26:B28\")"]
[null,"回"]
[null,"日"]

{"sheet":"病児・病後児①(基本）","index":3,"n_rows":51,"n_cols":30,"rows_kept":51,"cut":false,"hidden":false,"merged":[[45,26,45,28],[46,26,46,28],[47,26,47,28],[38,5,38,6],[39,4,42,15],[8,24,8,29],[14,0,14,3],[13,7,13,8],[13,15,13,18],[13,0,13,3],[10,17,10,20],[14,15,14,18],[10,22,10,23],[36,0,37,2],[36,7,37,9],[36,16,42,19],[32,0,32,1],[33,0,33,1],[38,0,42,3],[33,5,33,6],[32,10,32,11],[33,10,33,11],[32,15,32,16],[33,12,33,16],[30,0,30,16],[31,2,31,6],[31,7,31,11],[31,12,31,16],[32,5,32,6],[31,0,31,1],[30,17,30,29],[32,28,32,29],[33,28,33,29],[31,23,31,29],[32,7,32,9],[33,7,33,9],[32,23,32,27],[33,23,33,27],[31,17,31,22],[21,6,21,7],[21,10,21,14],[21,15,21,19],[26,1,27,3],[26,17,27,19],[27,5,27,7],[24,0,27,0],[24,1,24,3],[24,4,24,15],[24,16,27,16],[24,17,24,19],[25,1,25,3],[25,4,25,15],[25,17,25,19],[0,22,0,26],[7,15,7,18],[7,19,7,20],[10,0,10,3],[9,0,9,3],[8,5,8,6],[9,9,9,11],[9,13,9,15],[9,17,9,19],[10,25,10,29],[7,21,7,22],[7,24,7,25],[7,27,7,28],[7,0,7,3],[8,8,8,17],[8,19,8,22],[7,4,7,14],[8,0,8,3],[10,15,10,16],[19,0,19,2],[19,3,19,4],[19,6,19,7],[19,10,19,14],[19,15,19,19],[17,0,17,7],[17,8,17,14],[32,2,32,4],[33,2,33,4],[17,15,17,28],[18,0,18,2],[18,3,18,7],[18,8,18,9],[18,10,18,14],[32,12,32,14],[20,0,20,2],[20,3,20,4],[20,6,20,7],[20,10,20,14],[20,15,20,19],[25,20,25,28],[21,24,21,29],[21,0,21,2],[21,3,21,4],[46,0,46,1],[47,0,47,1],[45,14,45,15],[47,2,47,3],[47,4,47,5],[47,6,47,7],[47,8,47,9],[47,10,47,11],[47,12,47,13],[47,14,47,15],[45,0,45,1],[45,20,45,21],[45,22,45,23],[45,24,45,25],[46,2,46,3],[46,4,46,5],[46,6,46,7],[46,8,46,9],[46,10,46,11],[46,12,46,13],[46,14,46,15],[46,16,46,17],[46,18,46,19],[46,20,46,21],[46,22,46,23],[46,24,46,25],[45,2,45,3],[45,4,45,5],[45,6,45,7],[45,8,45,9],[14,20,14,23],[14,25,14,29],[13,9,13,14],[13,19,13,29],[14,4,14,14],[47,16,47,17],[47,18,47,19],[47,20,47,21],[47,22,47,23],[47,24,47,25],[45,10,45,11],[45,12,45,13],[19,24,19,29],[24,20,24,29],[20,24,20,29],[32,17,32,22],[33,17,33,22],[18,15,18,19],[18,20,18,21],[18,22,18,23],[18,24,18,29],[36,21,36,22],[45,16,45,17],[45,18,45,19]]}
["令和７年度チェックリスト【病児・病後児保育事業】(※保育所・認定こども園以外）",null,null,null,null,null,null,null,null,null,null,null,null,null,null,null,null,null,null,null,null,null,{"$f":"DATE(誓約書!AH3+2018,4,1)","v":"2025-04-01"}]
[]
["＜基本情報＞"]
["・下記を記載ください。欄のスペースが足りない場合は広げてください。"]
["・利用リーフレット、ホームページの写し等（施設の対応可能な症例、開所（訪問）時間等保護者への周知文書）を添付してください。"]
[]
["１　病児保育施設に関する事項"]
["病児保育施設名称",null,null,null,{"$f":"誓約書!Y15","v":0},null,null,null,null,null,null,null,null,null,null,"事業開始年月日",null,null,null,"平成",null,null,null,"年",null,null,"月",null,null,"日"]
["施設所在地等",null,null,null,"〒",null,null,null,null,null,null,null,null,null,null,null,null,null,"℡",null,null,null,null,"Email"]
["併設施設の種類",null,null,null,null,"診療所",null,null,null,"病院",null,null,null,"小規模保育施設",null,null,null,"家庭的保育事業所",null,null,null,"その他（　　　　　　　　）"]
["事業の種別　",null,null,null,null,"病児対応型",null,null,"病後児対応型",null,null,"体調不良児対応型",null,null,null,"非施設型\n(訪問型）",null,"病児保育事業の責任者",null,null,null,"職",null,null,"氏名"]
[]
["２　設置主体に関する事項"]
["設置主体名",null,null,null,null,"個人",null,"法人、法人名称",null,{"$f":"誓約書!Y9","v":0},null,null,null,null,null,"代表者職・氏名",null,null,null,{"$f":"誓約書!Y12","v":0}]
["主たる事務所の所在地",null,null,null,null,null,null,null,null,null,null,null,null,null,null,"連絡先",null,null,null,"℡",null,null,null,null,"Email"]
[]
["３　運営に関する事項"]
["（１）開設時間",null,null,null,null,null,null,null,"（２）利用定員・対象年齢",null,null,null,null,null,null,"（３）職員数"]
["曜日",null,null,"開設時間（24時間表記）",null,null,null,null,"利用定員",null,"対象年齢（例　6ヶ月～12才）",null,null,null,null,"職種",null,null,null,null,"専属",null,"兼務",null,"兼務先機関名"]
[null,null,null,null,null,"～",null,null,null,"名",null,null,null,null,null,"保育士",null,null,null,null,null,"名",null,"名"]
[null,null,null,null,null,"～",null,null,null,"名",null,null,null,null,null,"看護師等（看護師、准看護師、保健師、助産師）",null,null,null,null,null,"名",null,"名"]
[null,null,null,null,null,"～",null,null,null,"名",null,null,null,null,null,"その他（　　　　　　　）\n例：栄養士・事務員等",null,null,null,null,null,"名",null,"名"]
[]
["（４）協力機関・指導医の状況"]
["協力医療機関","名称",null,null,null,null,null,null,null,null,null,null,null,null,null,null,"指導医","氏名"]
[null,"所在地",null,null,null,null,null,null,null,null,null,null,null,null,null,null,null,"所在地"]
[null,"協力内容\n\n(該当にチェック)",null,null,null,"児童の診察",null,null,null,"医療処置の指示",null,null,null,"緊急時の対応",null,null,null,"緊急時の対応\n\n(該当にチェック）",null,null,null,"診察、治療",null,null,"施設に対する処置の指導"]
[null,null,null,null,null,"施設の感染予防措置などの指導",null,null,null,"その他（　　　　　　　　　　　　　　　　）",null,null,null,null,null,null,null,null,null,null,null,"転院",null,null,"その他（　　　　　　　　　　　　　）"]
[]
["４　設備に関する事項"]
["（１）病児対応型・病後児対応型",null,null,null,null,null,null,null,null,null,null,null,null,null,null,null,null,"（２）体調不良児対応型"]
["種　　類",null,"保育室",null,null,null,null,"観察室又は安静室",null,null,null,null,"調理室\n（　専用・兼用　）",null,null,null,null,"種　　類",null,null,null,null,null,"医務室又は余裕スペース"]
["面　　積",null,null,null,null,"㎡",null,null,null,null,"㎡",null,null,null,null,"㎡",null,"面　　積",null,null,null,null,null,null,null,null,null,null,"㎡"]
["定員1人当たり面積",null,null,null,null,"㎡",null,null,null,null,"㎡",null,null,null,null,null,null,"定員1人当たり面積",null,null,null,null,null,null,null,null,null,null,"㎡"]
[]
["５　運営内容に関する事項"]
["送迎対応\n（該当にチェック）",null,null,null,"有",null,"無","手洗い設備\n（該当にチェック）",null,null,null,"有",null,"無",null,null,"病児保育に関する施設内外の従業員研修の状況（（　）内に頻度を記載のこと）",null,null,null,null,"施設内研修",null,"（年",null,"回）"]
[null,null,null,null,null,null,null,null,null,null,null,null,null,null,null,null,null,null,null,null,null,"全国病児保育協議会ブロック研修会",null,null,null,null,null,"（",null,"）"]
["感染症対策（体温管理・隔離・使い捨て資材の使用・手洗い消毒等実施している内容を記載）",null,null,null,null,"適切",null,null,"不適切",null,null,null,null,null,null,null,null,null,null,null,null,"日本医療保育学会ブロック研修会",null,null,null,null,null,"（",null,"）"]
[null,null,null,null,null,null,null,null,null,null,null,null,null,null,null,null,null,null,null,null,null,"日本病児保育協会ｵｰﾌﾟﾝｾﾐﾅｰ",null,null,null,null,null,"（",null,"）"]
[null,null,null,null,null,null,null,null,null,null,null,null,null,null,null,null,null,null,null,null,null,"県が実施する病児保育研修会",null,null,null,null,null,"（",null,"）"]
[null,null,null,null,null,null,null,null,null,null,null,null,null,null,null,null,null,null,null,null,null,"市町が実施する病児保育研修会",null,null,null,null,null,"（",null,"）"]
[null,null,null,null,null,null,null,null,null,null,null,null,null,null,null,null,null,null,null,null,null,"その他（　　　　　　　　　　　　　　　　　）",null,null,null,null,null,"（",null,"）"]
[]
["６　利用状況"]
[null,null,"４月",null,"５月",null,"６月",null,"７月",null,"８月",null,"９月",null,"１０月",null,"１１月",null,"１２月",null,"１月",null,"２月",null,"３月",null,"合計"]
["令和６年度",null,null,null,null,null,null,null,null,null,null,null,null,null,null,null,null,null,null,null,null,null,null,null,null,null,{"$f":"SUM(C47:Z47)","v":0}]
["令和７年度",null,null,null,null,null,null,null,null,null,null,null,null,null,null,null,null,null,null,null,null,null,null,null,null,null,{"$f":"SUM(C48:Z48)","v":0}]
[]
[null,null,"注 1","各月の利用延べ利用者数を記載して下さい。"]
[null,null,2,"令和７年度は、資料作成日の前月までの状況を記載して下さい"]

{"sheet":"病児・病後児②（点検表）","index":4,"n_rows":61,"n_cols":7,"rows_kept":61,"cut":false,"hidden":false,"merged":[[4,0,4,1],[5,0,5,1],[5,2,12,2],[5,5,12,5],[5,6,12,6],[6,3,9,3],[6,4,9,4],[0,0,0,3],[0,5,0,6],[2,0,3,1],[2,2,2,3],[2,4,3,4],[2,5,3,5],[2,6,3,6],[13,6,17,6],[13,0,17,1],[10,0,10,1],[11,0,11,1],[12,0,12,1],[13,2,17,2],[13,5,17,5],[29,0,29,1],[18,0,19,1],[20,0,20,6],[21,0,21,1],[22,0,22,1],[22,3,23,3],[23,0,23,1],[24,0,24,1],[25,0,25,1],[26,0,26,1],[27,0,27,1],[28,0,28,1],[41,0,41,1],[30,0,30,1],[31,0,31,1],[32,0,32,6],[33,0,33,1],[34,0,34,1],[35,0,35,1],[36,0,36,6],[37,0,37,1],[38,0,38,1],[39,0,39,1],[40,0,40,6],[42,0,42,1],[43,0,43,1],[47,0,47,1],[44,0,46,1],[48,0,51,1],[60,0,60,1],[56,0,56,1],[57,0,57,1],[58,0,58,1],[52,0,55,1],[59,0,59,1]]}
["＜病児・病後児保育事業指導検査基準・点検表　（児童福祉法34条の18の2）＞(※保育所・認定こども園以外）",null,null,null,null,{"$f":"DATE(誓約書!AH3+2018,4,1)","v":"2025-04-01"}]
[]
["点検項目",null,"点　検　事　項",null,"点検\n結果","確認書類等","備　考"]
[null,null,"着眼点","内　　　容　　　（説　　明）"]
["１ 事業の定義\n（児童福祉法第６条の３⑬）",null,"事業内容は、事業の定義に適合しているか。\n","・病児保育事業とは、保育を必要とする乳児・幼児又は保護者の労働若しくは疾病その他の事由により家庭において保育を受けることが困難となった小学校に就学している児童であって、疾病にかかっているものについて、保育所、認定こども園、病院、診療所その他内閣府令で定める施設（※）において、保育を行う事業をいう。\n\n※(規則第1条の32の3）家庭的保育事業、小規模保育事業、居宅訪問型保育事業又は事業所内保育事業の用に供する施設、児童の居宅その他保育を適切に行うことができる施設（認可外保育施設も含む）","　","当該施設の受入方針等より確認。"]
["２ 事業類型\n（該当する類型に○を記してください。）↓\n",null,"事業内容は事業類型に適合しているか。\n(該当する類型の点検結果をチェック）\n","（病児対応型）\n・児童が病気の「回復期に至らない場合」であり、かつ、当面の症状の急変が認められない場合において、当該児童を病院・診療所、保育所等に付設された専用スペース又は本事業のための専用施設で一時的に保育する事業。","－","当該施設の受入方針等より確認。"]
["　","　　病児対応型",null,"（病後児対応型）\n・児童が病気の「回復期」であり、かつ、集団保育が困難な期間において、当該児童を病院・診療所、保育所等に付設された専用スペース又は本事業のための専用施設で一時的に保育する事業。","－"]
["　","　　病後児対応型"]
["　","　　体調不良児対応型"]
["　","　　非施設型(訪問型）"]
[null,null,null,"（体調不良児対応型）\n・児童が保育中に微熱を出すなど「体調不良」となった場合において、安心かつ安全な体制を確保することで、保育所等における緊急的な対応を図る事業及び保育所等に通所する児童に対して保健的な対応等を図る事業。","－"]
["・送迎対応の有無↓",null,null," ( 非施設型(訪問型））\n・児童が「回復期に至らない場合」又は、「回復期」であり、かつ、集団保育が困難な期間において、当該児童の自宅において一時的に保育する事業。","－"]
["　",null,null,"（送迎対応）・病児対応型、病後児対応型及び体調不良児対応型において、看護師、准看護師、保健師又は助産師（以下「看護師等」という。）又は保育士を配置し、保育所等において保育中に「体調不良」となった児童を送迎し、病院・診療所、保育所等に付設された専用スペース又は本事業のための専用施設で一時的に保育することを可能とする。","－"]
["３ 対象児童\n ",null,"対象児童は適切か。\n(該当する類型の点検結果をチェック）","  (病児対応型）　当面症状の急変は認められないが、病気の回復期に至っていないことから、集団保育が困難であり、かつ、保護者の勤務等の都合により家庭で保育を行うことが困難な児童であって、市町村が必要と認めた乳児・幼児又は小学校に就学している児童（以下「病児」という。）。","－","当該施設の受入方針等より確認。"]
[null,null,null,"  (病後児対応型）　病気の回復期であり、集団保育が困難で、かつ、保護者の勤務等の都合により家庭で保育を行うことが困難な児童であって、市町村が必要と認めた乳児・幼児又は小学校に就学している児童（以下「病後児」という。）。","－"]
[null,null,null," (体調不良児対応型）　事業実施保育所等に通所しており、保育中に微熱を出すなど体調不良となった児童であって、保護者が迎えに来るまでの間、緊急的な対応を必要とする児童（以下「体調不良児」という。）。","－"]
[null,null,null," (非施設型(訪問型））\n　病児及び病後児とする。","－"]
[null,null,null," (送迎対応）　保育所等に通所しており、保育中に微熱を出すなど体調不良となった児童であって、保護者が迎えに来るまでの間、緊急的な対応を必要とする児童。","－"]
[" ４　届出\n （児童福祉法第34条の18）",null,"設置届を提出してるか。","・第34条の18　国及び都道府県以外の者は、内閣府令で定めるところにより、あらかじめ、内閣府令で定める事項を都道府県知事に届け出て、病児保育事業を行うことができる。","　"]
[null,null,"変更が生じた場合、期間内に変更届を提出しているか。","・第34条の18②　国及び都道府県以外の者は、前項の規定により届け出た事項に変更を生じたときは、変更の日から一月以内に、その旨を都道府県知事に届け出なければならない。","　"]
["５ 病児対応型及び病後児対応型　※該当する類型の場合に記載してください。"]
[" ① 実施場所",null,"実施場所は適合しているか。","・病院・診療所、保育所等に付設された専用スペース又は本事業のための専用施設であって、次のア～ウの基準を満たし、市町村が適当と認めたものとする。","－"]
["　　（保育室）",null,"保育室は病児保育専用に確保されているか。","ア　保育室及び児童の静養又は隔離の機能を持つ観察室又は安静室を有すること。","－"]
["　　（観察室又は安静室）",null,"観察室又は安静室は病児保育専用に確保されているか。",null,"－"]
["　　（調理室）",null,"調理室があるか。","イ　調理室を有すること。なお、病児（病後児）保育専用の調理室を設けることが望ましいが、本体施設等の調理室と兼用しても差し支えないこと。","－"]
["　　（安全衛生対策）",null,"特に扉・柵を設けるなど安全性に配慮されているか。","ウ　事故防止及び衛生面に配慮されているなど、児童の養育に適した場所とすること。 ","－"]
["② 職員の配置",null,"利用児童数に応じて、必要な人員が確保されているか。","・病児（病後児）の看護を担当する看護師等を利用児童おおむね１０人につき１名以上配置するとともに、病児が安心して過ごせる環境を整えるために、保育士を利用児童おおむね３人につき１名以上配置すること。","－","出勤簿･預かりの記録等"]
[null,null,"常駐又は、常駐していない場合は次のア、イに適合しているか。","（注１）保育士及び看護師等の職員配置については、常駐を原則とする。ただし、利用児童が見込まれる場合に近接病院等から保育士及び看護師等が駆けつけられる等の迅速な対応が可能であれば、以下のとおり常駐を要件としない。","－","常駐していない方（兼務者）の所属、職務を確認"]
[null,null,"　　職員が常駐していない場合、利用児童がいる時間帯の体制は適正か。","ア　利用児童がいる時間帯\n（ア）～（エ）の要件を満たし、利用児童の安心・安全を確保できる体制を整えている場合には、看護師等の常駐を要件としない。\n\n（ア）病気からの回復過程を遅らせたり、二次感染を生じたりすることがないよう、利用児童の病状等を定期的に確認・把握した上で、適切な関わりとケアを行うこと。\n（イ）病児保育施設が医療機関内に設置されている場合等であり、病児保育施設と看護師等が病児保育以外の業務に従事している場所とが近接していること。\n（ウ）看護師等が病児保育以外の業務に従事している場合においても、緊急の場合には病児保育施設に速やかに駆けつけることができる職員体制が確保されていること。\n（エ）看護師等が常駐しない場合であっても、保育士等を複数配置することにより、常に複数人による保育体制を確保していること。","－"]
[null,null,"　　職員が常駐していない場合、利用児童がいない時間帯の体制は適正か。","イ　利用児童がいない時間帯\n　利用児童が発生した場合に、連絡を受けた保育士及び看護師等が速やかに出勤し、業務に従事するなど、柔軟な対応が可能となる職員体制が確保されていれば、利用児童がいない場合は保育士及び看護師等の常駐を要件としない。","－"]
[null,null,"2人以上又は、２名以上の体制でない場合は右のア、イに適合しているか。\n\n(離島･中山間地域は例示であるので、市町の判断を優先)","（注２）保育士及び看護師等の２名以上の体制で行うことを原則（必須条件）とするが、以下のア及びイの要件を満たす場合には、職員の配置要件を満たしているものとする。その際、本規定に基づき事業を実施する市町村は、事業実施に係る要綱等で定めるところにより、その提供する病児保育に係る情報を公表しなければならない。\n\nア　 離島・中山間地その他の地域で病児保育の利用児童の見込みが少ないと市町村が認めた上で、医療機関併設型で定員２人以下の場合。\n\nイ　「子育て支援員研修事業の実施について」（令和７年４月１日付けこ成環第88号・こ支家第98号通知）の別紙「子育て支援員研修事業実施要綱」の５（３）アに定める基本研修及び５（３）イ（イ）に定める「地域型保育」の専門研修を修了している等、病児保育事業に従事する上で必要な知識や技術等を修得していると市町村が認めた看護師等を１名専従で配置した上で、病児保育以外の業務に従事している看護師等１名が、必要な場合に速やかに対応できる職員体制を確保し、利用児童の病状等を定期的に確認・把握した上で、適切な関わりとケアを行うこと。 ","－"]
["③ その他",null,"対象児童の受け入れ、担当職員の業務等は適切か。","ア　集団保育が困難であり、かつ、保護者が家庭で保育を行うことができない期間内で対象児童の受け入れを行うこと。\nイ　本事業を担当する職員は、利用の少ない日等において、感染症流行状況、予防策等の情報提供や巡回支援等を適宜実施すること。","－","･医師･保護者連絡票（病児保育事業実施要綱別紙２様式例) 、当該施設の受入方針等"]
["６ 体調不良児対応型　　※該当する類型の場合に記載してください。"]
["①実施場所",null,"・実施場所は適合しているか\n\n（職員及び他児の往来の制限がされているか）","・保育所又は医務室が設けられている認定こども園、小規模保育事業所、事業所内保育事業所の医務室、余裕スペース等で、衛生面に配慮されており、対象児童の安静が確保されている場所とすること。\n（医務室、余裕スペース等実施場所と保育室・遊戯室等の間に間仕切り等を設けることで、健康な職員及び他児の往来を制限している。）","－"]
["②職員の配置",null,"利用児童数に応じて、必要な人員が確保されているか。","・看護師等を１名以上配置し、預かる体調不良児の人数は、看護師等１名に対して２人程度とすること。 \n","－"]
[null,null,"看護師等の活動が適正に行われているか。","・本事業を担当する看護師等は、実施保育所等における児童全体の健康管理・衛生管理等の保健的な対応を日常的に行うこと。 \n・本事業を担当する看護師等は、地域の子育て家庭や妊産婦等に対する相談支援を地域のニーズに応じて定期的に実施すること。","－"]
["７　非施設型（訪問型）　　※該当する類型の場合に記載してください。"]
["①実施場所",null,"適合しているか(児童の自宅以外で預かっていないか)","・利用児童の居宅とする。","－"]
["②職員の配置\n　",null,"利用児童数に応じて、必要な人員が確保されているか。","次のア～ウを満たすこと。\n\nア　病児（病後児）の看護を担当する一定の研修を修了した看護師等、保育士、研修により市町村長が認めた者（以下「家庭的保育者」という。）のいずれか１名以上配置すること。\n\nイ　アに定める職員を配置する場合は、「職員の資質向上・人材確保等研修事業の実施について」（令和６年４月26日付けこ成事第438号通知）に定める病児・病後児保育（訪問型）研修を修了した者とする。なお、令和8年３月31日までの間に、病児保育事業実施要綱別紙１に掲げる研修（市町村等が実施する他の研修会が内容を満たす場合には、その研修等の修了をもって代えることも差し支えない）を修了した者についても配置できることとする\n\nウ　預かる病児（病後児）の人数は、一定の研修を修了した看護師等、保育士、家庭的保育者いずれか１名に対して、１人程度とする。 ","－","出勤簿･預かりの記録等により確認"]
["③その他",null,"実施方法等は適正か。","集団保育が困難であり、かつ、保護者が家庭で保育を行うことができない期間内で対象児童宅への訪問を行うこと。","－","医師･保護者連絡票、当該施設の受入方針等より確認。"]
["８ 送迎対応がある場合　　※該当する場合は記載してください。"]
["①職員の配置",null,"職員配置は適正か。","・保育所等から体調不良児の送迎を行う際は、送迎用の自動車に同乗する看護師等又は保育士を配置すること。","－"]
["②その他",null,"送迎方法（安全面）は適切か。","ア　保育所等から体調不良児の送迎を行う際には、送迎用の自動車に看護師又は保育士が同乗し、安全面に十分配慮した上で実施すること。","－"]
[null,null,"送迎方法（手段）は適切か。","イ　送迎はタクシーによる送迎を原則とする。ただし、やむを得ない事由によりタクシーによる送迎対応が困難な場合には、その他自動車の借上げ等による実施も可能とする。","－"]
["９ 実施方法",null,"受け入れ（訪問）の決定は適正か。","・病児対応型及び病後児対応型並びに非施設型（訪問型）については、対象児童をかかりつけ医に受診させた後、保護者と協議のうえ、受け入れ、訪問の決定を行うこと。",null,"医師･保護者連絡票等"]
[null,null,"送迎対応及びその後の対応は適正か。","・送迎対応については、保育所等から連絡を受けた保護者が、病児保育実施施設に連絡すること等により実施すること。また、送迎対応を行った上で、病児対応型及び病後児対応型の事業を実施する施設において保育を行うにあたっては、かかりつけ医等に受診すること。","－"]
[null,null,"医療機関でない施設が実施する場合は、連絡票で確認し、決定を行っているか。","・医療機関でない施設が病児対応型及び非施設型（訪問型）を実施する場合は、保護者が児童の症状、処方内容等を記載した連絡票（病児保育事業実施要綱別紙２様式例。児童を診察した医師が入院の必要性はない旨を署名したもの。）により、症状を確認し、受け入れ、訪問の決定を行うこと。",null,"医師･保護者連絡票等"]
["10 留意事項"]
["　① 医療機関との連携",null,"医療機関との協力関係があるか。","・本事業を実施する施設は、緊急時に児童を受け入れてもらうための医療機関（以下「協力医療機関」という。）をあらかじめ選定し、事業運営への理解を求めるとともに、協力関係を構築すること。",null,"基本情報シート"]
[null,null,"指導医を選定しているか。","・医療機関でない施設が病児対応型、非施設型（訪問型）及び送迎対応を実施する場合は、児童の病態の変化に的確に対応し、感染の防止を徹底するため、日常の医療面での指導、助言を行う医師（以下「指導医」という。）をあらかじめ選定すること。 ",null,"基本情報シート"]
[null,null,"緊急時の対応についてあらかじめ文書により取り決めを行っているか。","・病児対応型、非施設型（訪問型）及び送迎対応を実施する場合においては、指導医又は協力医療機関（併設する医療機関の医師を含む。）との関係において、緊急時の対応についてあらかじめ文書により取り決めを行うこと。 ",null,"対応フローの共有及び基本情報シート"]
[null,null,"利用方法等を周知しているか。","・本事業を実施するに当たっては、指導医・嘱託医と相談のうえ、一定の目安（対応可能な症例、開所（訪問）時間等）を作成するとともに、保護者に対して周知し、理解を得ること。",null,"ＨＰ、利用案内等当該施設の受入方針等"]
["　② 感染の防止",null,"感染防止の配慮ができているか。","・体温の管理等その他健康状態を適切に把握するとともに、複数の児童を受け入れる場合は、他児への感染に配慮すること。",null,"基本情報シート"]
[null,null,"衛生面の配慮ができているか。","・手洗い等の設備を設置し、衛生面への十分な配慮を施すことで、他児及び職員への感染を防止すること。"]
[null,null,"職員及び他児の往来の制限がされているか。（再掲）","・体調不良児対応型を実施する場合においては、他の健康な児童等が感染しないよう、事業実施場所と保育室・遊戯室等の間に間仕切り等を設けることで、職員及び他児の往来を制限すること。 （再掲）",null,"基本情報シート"]
[null,null,"利用申込時に予防接種の確認、助言を行っているか。","・児童の受け入れに際しては、予防接種の状況を確認するとともに、必要に応じて予防接種するよう助言すること。"]
["　③ 書類の整備",null,"書類が整備されているか。","病児保育事業実施要綱の要件に適合する保育所等である旨の必要な書類を整備しておくこと。\n・従事する者の資格要件、勤務状況が分かる書類\n・診断医師及び保護者からの連絡票（病児保育事業実施要綱別紙２様式例）\n・児童の預かりの記録\n・対応可能な症例、開所（訪問）時間等保護者への周知文書\n・緊急時の対応に関する対応フロー"]
["　④ 事故の報告",null,"事故が発生した場合の対応は適切か。","・保育中に事故が生じた場合には、「教育・保育施設等における事故の報告等について」（令和７年３月2１日付けこ成安第44号・６教参学第51号通知）に従い、速やかに報告すること。"]
["　⑤ 研修",null,"職員の資質向上に努めているか。","・病児保育事業に従事する職員については、病児・病後児保育に関する研修を受講し、資質の向上に努めること。"]
["　⑥ 非常災害対策",null,"対応は適切か","災害時情報共有システムの操作動画等を確認し、操作方法を把握しているか。\n被災状況報告の入力担当者を決めているか。\n災害時情報共有システムからの連絡を受信する事業所メールアドレスを把握しているか。\n災害の発生により、物資の供給に支障が生じた場合に備え、入所者及び施設職員の最低でも３日間の生活に必要な食料及び飲料水、生活必需品並びに燃料等の備蓄しているか。"]
["　⑦ 福祉サービスの質の評価",null,"対応は適切か","福祉サービス第三者評価の受審等の福祉サービスの質の評価を行い、サービスの質の向上を図るための措置を講じているか。",null,null,"（受審の有無：　\n受審年月：　年　月）"]